{"text_format":"1","workbook":"xlsx","n_sheets":6,"sheets":["Herrerække","Damerække","9-huls Damerække","9-huls Herrerække","Ark1","Ark2"],"not_rendered":{"charts":0,"images":0,"macros":1,"external_links":0,"defined_names":1,"comments":0,"pivot_tables":0},"unopened":[],"bounds":{"document_bytes":16777216,"sheet_cells":100000,"rows_first":2000,"rows_last":500,"rows_between":2000,"halvings":0,"cell_chars":16384,"cell_head_chars":4096},"cells_cut":0,"cells_raw":0,"read":"whole","date_system":"1900"}

{"sheet":"Herrerække","index":0,"n_rows":102,"n_cols":23,"rows_kept":102,"cut":false,"hidden":false,"merged":[]}
["HA    Herrerække        A",null,null,null,null,null,null,null,null,null,null,null,null,null,null,null,null,null,null,null,null,"ÅR","10 bedste score"]
["hcp.      +8 - 25,9",null,"hcp.","2021-04-16","2021-04-23","2021-05-07","2021-05-21","2021-06-04","2021-06-18","2021-06-25","2021-07-02","2021-07-09","2021-07-16","2021-07-23","2021-08-13","2021-08-20","2021-08-27","2021-09-03","2021-09-09","2021-09-24","2021-10-01",2021,2021]
["Erik","Andersen",15,null,null,null,null,null,null,null,null,null,null,null,null,null,null,null,null,null,null,{"$f":"SUM(D3:U3)","v":0}]
["Jørgen","Stoltz",16.899999999999999,null,null,null,null,null,null,null,null,null,null,null,null,null,null,null,null,null,null,0]
["Hans","Eriksen",17.3,4,null,null,null,null,null,null,null,null,null,null,null,null,null,null,null,null,null,4]
["Rudi","Brustis Landsdorf",17.399999999999999,null,null,null,null,null,null,null,null,null,null,null,null,null,null,null,null,null,null,0]
["Børge","Exaudi",17.899999999999999,10,null,null,null,null,null,null,null,null,null,null,null,null,null,null,null,null,null,10]
["Vagn","Søllested",18.8,null,null,null,null,null,null,null,null,null,null,null,null,null,null,null,null,null,null,0]
["Henrik","Jacobsgaard",19.399999999999999,null,null,null,null,null,null,null,null,null,null,null,null,null,null,null,null,null,null,0]
["Ole","Jørgensen",20.3,null,null,null,null,null,null,null,null,null,null,null,null,null,null,null,null,null,null,0]
["Henrik","Bergenholtz",20.5,null,null,null,null,null,null,null,null,null,null,null,null,null,null,null,null,null,null,0]
["Klaus","Bjerre",20.9,null,null,null,null,null,null,null,null,null,null,null,null,null,null,null,null,null,null,0]
["Lars","Jacobsen",21.1,null,null,null,null,null,null,null,null,null,null,null,null,null,null,null,null,null,null,0]
["Poul Werner","Odér",21.3,null,null,null,null,null,null,null,null,null,null,null,null,null,null,null,null,null,null,0]
["Ole","Hahn",21.5,null,null,null,null,null,null,null,null,null,null,null,null,null,null,null,null,null,null,0]
["Claus","Winther",22.7,null,null,null,null,null,null,null,null,null,null,null,null,null,null,null,null,null,null,0]
["Jørn","Larsen",23,5,null,null,null,null,null,null,null,null,null,null,null,null,null,null,null,null,null,5]
["Kurt","Kristoffersen",23.1,null,null,null,null,null,null,null,null,null,null,null,null,null,null,null,null,null,null,0]
["Ib","Bertelsen",23.2,8,null,null,null,null,null,null,null,null,null,null,null,null,null,null,null,null,null,8]
["Søren","Grønbech",23.3,null,null,null,null,null,null,null,null,null,null,null,null,null,null,null,null,null,null,0]
["Jack","Rasmussen",23.3,null,null,null,null,null,null,null,null,null,null,null,null,null,null,null,null,null,null,0]
["Ole","Meldgaard",23.4,null,null,null,null,null,null,null,null,null,null,null,null,null,null,null,null,null,null,0]
["Uffe","Fromberg",23.5,null,null,null,null,null,null,null,null,null,null,null,null,null,null,null,null,null,null,0]
["Finn","Sørensen",23.6,null,null,null,null,null,null,null,null,null,null,null,null,null,null,null,null,null,null,0]
["Poul","Christensen",23.6,6,null,null,null,null,null,null,null,null,null,null,null,null,null,null,null,null,null,6]
["Flemming","Bjerre",23.7,null,null,null,null,null,null,null,null,null,null,null,null,null,null,null,null,null,null,0]
["Peter Birger","Tøttrup",23.7,null,null,null,null,null,null,null,null,null,null,null,null,null,null,null,null,null,null,0]
["Ernst C.C.","Leuring",23.8,null,null,null,null,null,null,null,null,null,null,null,null,null,null,null,null,null,null,0]
["Kim","Alkestrup",23.8,null,null,null,null,null,null,null,null,null,null,null,null,null,null,null,null,null,null,0]
["Per","Bøgebjerg",23.9,null,null,null,null,null,null,null,null,null,null,null,null,null,null,null,null,null,null,0]
["Knud Erik","Andersen",24,null,null,null,null,null,null,null,null,null,null,null,null,null,null,null,null,null,null,0]
["Tage ","Jensen",24.1,null,null,null,null,null,null,null,null,null,null,null,null,null,null,null,null,null,null,0]
["Sten","Lawaetz",24.2,null,null,null,null,null,null,null,null,null,null,null,null,null,null,null,null,null,null,0]
["Erik Vedel","Jensen",24.3,null,null,null,null,null,null,null,null,null,null,null,null,null,null,null,null,null,null,0]
["Erland","Jørgensen",24.5,null,null,null,null,null,null,null,null,null,null,null,null,null,null,null,null,null,null,0]
["Per","Bjørk",24.5,null,null,null,null,null,null,null,null,null,null,null,null,null,null,null,null,null,null,0]
["Jørgen","Rohde",24.6,3,null,null,null,null,null,null,null,null,null,null,null,null,null,null,null,null,null,{"$f":"SUM(D37:U37)","v":3}]
["Leif","Hansen",24.8,null,null,null,null,null,null,null,null,null,null,null,null,null,null,null,null,null,null,0]
["Niels Erik","Eriksen",24.9,null,null,null,null,null,null,null,null,null,null,null,null,null,null,null,null,null,null,0]
["Max","Borgholt",24.9,null,null,null,null,null,null,null,null,null,null,null,null,null,null,null,null,null,null,0]
["Flemming ","Toft",25,null,null,null,null,null,null,null,null,null,null,null,null,null,null,null,null,null,null,0]
["Svend","Kay",25.2,null,null,null,null,null,null,null,null,null,null,null,null,null,null,null,null,null,null,0]
["Henning","Clemmensen",25.4,null,null,null,null,null,null,null,null,null,null,null,null,null,null,null,null,null,null,0]
["Ole","Schmidt",25.7,7,null,null,null,null,null,null,null,null,null,null,null,null,null,null,null,null,null,7]
["Jørn","Finne-Ipsen",25.8,null,null,null,null,null,null,null,null,null,null,null,null,null,null,null,null,null,null,0]
[null,null,null,null,null,null,null,null,null,null,null,null,null,null,null,null,null,null,null,null,null,0]
[null,null,null,null,null,null,null,null,null,null,null,null,null,null,null,null,null,null,null,null,null,0]
[null,null,null,null,null,null,null,null,null,null,null,null,null,null,null,null,null,null,null,null,null,0]
[null,null,null,null,null,null,null,null,null,null,null,null,null,null,null,null,null,null,null,null,null,0]
[null,null,null,null,null,null,null,null,null,null,null,null,null,null,null,null,null,null,null,null,null,0]
[null,null,null,null,null,null,null,null,null,null,null,null,null,null,null,null,null,null,null,null,null,0]
[null,null,null,null,null,null,null,null,null,null,null,null,null,null,null,null,null,null,null,null,null,0]
[]
[]
[]
[]
["HB    Herrerække        A","B",null,null,null,null,null,null,null,null,null,null,null,null,null,null,null,null,null,null,null,"ÅR","10 bedste score"]
["Hcp. 26,0-45,0",null,"hcp.","2021-04-16","2021-04-23","2021-05-07","2021-05-21","2021-06-04","2021-06-18","2021-06-25","2021-07-02","2021-07-09","2021-07-16","2021-07-23","2021-08-13","2021-08-20","2021-08-27","2021-09-03","2021-09-09","2021-09-24","2021-10-01",2021,2021]
["Mogens Flemming","Andersen",26.4,null,null,null,null,null,null,null,null,null,null,null,null,null,null,null,null,null,null,{"$f":"SUM(D59:U59)","v":0}]
["Leif","Thomsen",26.4,null,null,null,null,null,null,null,null,null,null,null,null,null,null,null,null,null,null,0]
["Lars","Hansson",27.3,10,null,null,null,null,null,null,null,null,null,null,null,null,null,null,null,null,null,10]
["Leif Vangsbo","Madsen",27.3,null,null,null,null,null,null,null,null,null,null,null,null,null,null,null,null,null,null,0]
["Jørgen","Wiell",27.4,null,null,null,null,null,null,null,null,null,null,null,null,null,null,null,null,null,null,0]
["Arne","Bergmann",27.5,null,null,null,null,null,null,null,null,null,null,null,null,null,null,null,null,null,null,0]
["Kent","Hestehave",27.5,null,null,null,null,null,null,null,null,null,null,null,null,null,null,null,null,null,null,0]
["Jan Backer","Thomsen",27.7,4,null,null,null,null,null,null,null,null,null,null,null,null,null,null,null,null,null,4]
["Jørn","Eisbo",27.7,null,null,null,null,null,null,null,null,null,null,null,null,null,null,null,null,null,null,0]
["Erik","Poulsen",27.7,null,null,null,null,null,null,null,null,null,null,null,null,null,null,null,null,null,null,0]
["Søren","Eriksen",28,null,null,null,null,null,null,null,null,null,null,null,null,null,null,null,null,null,null,0]
["Per","Bobsin",28.3,7,null,null,null,null,null,null,null,null,null,null,null,null,null,null,null,null,null,{"$f":"SUM(D70:U70)","v":7}]
["Fredrik","Milde",29,null,null,null,null,null,null,null,null,null,null,null,null,null,null,null,null,null,null,0]
["Benny H.","Nielsen",29,null,null,null,null,null,null,null,null,null,null,null,null,null,null,null,null,null,null,0]
["Flemming","Bech",29.4,3,null,null,null,null,null,null,null,null,null,null,null,null,null,null,null,null,null,3]
["Karl Erik","Mikkelsen",29.8,null,null,null,null,null,null,null,null,null,null,null,null,null,null,null,null,null,null,0]
["Jens Holm","Nielsen",29.8,null,null,null,null,null,null,null,null,null,null,null,null,null,null,null,null,null,null,0]
["Jørgen","Gylling",30,null,null,null,null,null,null,null,null,null,null,null,null,null,null,null,null,null,null,0]
["Erik Nybro","Olsen",30.3,null,null,null,null,null,null,null,null,null,null,null,null,null,null,null,null,null,null,0]
["Torben Steen","Jensen",31.5,null,null,null,null,null,null,null,null,null,null,null,null,null,null,null,null,null,null,0]
["Leif","Jørgensen",31.7,8,null,null,null,null,null,null,null,null,null,null,null,null,null,null,null,null,null,8]
["Jan","Halborg",31.7,null,null,null,null,null,null,null,null,null,null,null,null,null,null,null,null,null,null,0]
["Torben Lønborg","Høpfner",33.200000000000003,null,null,null,null,null,null,null,null,null,null,null,null,null,null,null,null,null,null,0]
["Jørn Kragh","Nielsen",33.299999999999997,5,null,null,null,null,null,null,null,null,null,null,null,null,null,null,null,null,null,5]
["Michael","Bremer",33.5,null,null,null,null,null,null,null,null,null,null,null,null,null,null,null,null,null,null,0]
["Jørgen","Krampau",34,6,null,null,null,null,null,null,null,null,null,null,null,null,null,null,null,null,null,6]
["Gert Willy","Andersen",34.1,null,null,null,null,null,null,null,null,null,null,null,null,null,null,null,null,null,null,0]
["Kenneth","Larsen",34.299999999999997,null,null,null,null,null,null,null,null,null,null,null,null,null,null,null,null,null,null,0]
["Erik V.","Poulsen",34.5,null,null,null,null,null,null,null,null,null,null,null,null,null,null,null,null,null,null,0]
["Per Fibæk","Laursen",34.799999999999997,null,null,null,null,null,null,null,null,null,null,null,null,null,null,null,null,null,null,0]
["Sven","Ipsen",34.799999999999997,null,null,null,null,null,null,null,null,null,null,null,null,null,null,null,null,null,null,0]
["Bent H.","Thomsen",36,null,null,null,null,null,null,null,null,null,null,null,null,null,null,null,null,null,null,{"$f":"SUM(D90:U90)","v":0}]
["Frede V.","Nielsen",36.1,null,null,null,null,null,null,null,null,null,null,null,null,null,null,null,null,null,null,{"$f":"SUM(D91:U91)","v":0}]
["Mogens","Nielsen",36.700000000000003,null,null,null,null,null,null,null,null,null,null,null,null,null,null,null,null,null,null,{"$f":"SUM(D92:U92)","v":0}]
["Ole","Knudsen",40.1,null,null,null,null,null,null,null,null,null,null,null,null,null,null,null,null,null,null,{"$f":"SUM(D93:U93)","v":0}]
["Jens","Falck-Jensen",40.700000000000003,null,null,null,null,null,null,null,null,null,null,null,null,null,null,null,null,null,null,0]
["Ib","Bjørnram",41,null,null,null,null,null,null,null,null,null,null,null,null,null,null,null,null,null,null,0]
["Torben Bonde","Mikkelsen",42.2,null,null,null,null,null,null,null,null,null,null,null,null,null,null,null,null,null,null,0]
[null,null,null,null,null,null,null,null,null,null,null,null,null,null,null,null,null,null,null,null,null,0]
[null,null,null,null,null,null,null,null,null,null,null,null,null,null,null,null,null,null,null,null,null,0]
[null,null,null,null,null,null,null,null,null,null,null,null,null,null,null,null,null,null,null,null,null,0]
[null,null,null,null,null,null,null,null,null,null,null,null,null,null,null,null,null,null,null,null,null,0]
[null,null,null,null,null,null,null,null,null,null,null,null,null,null,null,null,null,null,null,null,null,0]
[null,null,null,null,null,null,null,null,null,null,null,null,null,null,null,null,null,null,null,null,null,0]

{"sheet":"Damerække","index":1,"n_rows":73,"n_cols":23,"rows_kept":73,"cut":false,"hidden":false,"merged":[]}
["DA   Damerække        A",null,null,null,null,null,null,null,null,null,null,null,null,null,null,null,null,null,null,null,null,"ÅR","10 bedste score"]
["hcp.  +8 - 30.9",null,"hcp.","2021-04-16","2021-04-23","2021-05-07","2021-05-21","2021-06-04","2021-06-18","2021-06-25","2021-07-02","2021-07-09","2021-07-16","2021-07-23","2021-08-13","2021-08-20","2021-08-27","2021-09-03","2021-09-09","2021-09-24","2021-10-01",2021,2021]
["Charlotte","Bjerre",14.4,null,null,null,null,null,null,null,null,null,null,null,null,null,null,null,null,null,null,{"$f":"SUM(D3:U3)","v":0}]
["Helle","Odér",19.600000000000001,null,null,null,null,null,null,null,null,null,null,null,null,null,null,null,null,null,null,0]
["Winnie","Bech",21.3,8,null,null,null,null,null,null,null,null,null,null,null,null,null,null,null,null,null,{"$f":"SUM(D5:U5)","v":8}]
["Marianne","Poulsen",21.8,7,null,null,null,null,null,null,null,null,null,null,null,null,null,null,null,null,null,{"$f":"SUM(D6:U6)","v":7}]
["Ingelise","Badsted",22.5,10,null,null,null,null,null,null,null,null,null,null,null,null,null,null,null,null,null,10]
["Dorte","Helvig",23,null,null,null,null,null,null,null,null,null,null,null,null,null,null,null,null,null,null,0]
["Eva Alkestrup","Skop",23.2,null,null,null,null,null," ",null,null,null,null,null,null,null,null,null,null,null,null,0]
["Berit","Vardil",23.5,3,null,null,null,null,null,null,null,null,null,null,null,null,null,null,null,null,null,3]
["Aase Ellgaard","Jensen",24.1,null,null,null,null,null,null,null,null,null,null,null,null,null,null,null,null,null,null,0]
["Bente","Bertelsen",24.5,null,null,null,null,null,null,null,null,null,null,null,null,null,null,null,null,null,null,{"$f":"SUM(D12:U12)","v":0}]
["Ina","Kristensen",25,5,null,null,null,null,null,null,null,null,null,null,null,null,null,null,null,null,null,5]
["Vibeke","Willumsen",25.4,6,null,null,null,null,null,null,null,null,null,null,null,null,null,null,null,null,null,6]
["Lisbeth","Bjørk",25.6,null,null,null,null,null,null,null,null,null,null,null,null,null,null,null,null,null,null,0]
["Grethe","Jørgensen",25.9,null,null,null,null,null,null,null,null,null,null,null,null,null,null,null,null,null,null,0]
["Lise","Hove",26.2,null,null,null,null,null,null,null,null,null,null,null,null,null,null,null,null,null,null,0]
["Francoise Brustis","Landsdorf",26.4,null,null,null,null,null,null,null,null,null,null,null,null,null,null,null,null,null,null,0]
["Dorte","Schmidt",27.7,null,null,null,null,null,null,null,null,null,null,null,null,null,null,null,null,null,null,0]
["Ingrid Cronqvist","Christensen",29.5,null,null,null,null,null,null,null,null,null,null,null,null,null,null,null,null,null,null,0]
["Else Marie","Alsen",29.7,null,null,null,null,null,null,null,null,null,null,null,null,null,null,null,null,null,null,{"$f":"SUM(D21:U21)","v":0}]
["Lis Østergaard","Johansen",29.7,null,null,null,null,null,null,null,null,null,null,null,null,null,null,null,null,null,null,0]
["Alice","Waldner",29.8,null,null,null,null,null,null,null,null,null,null,null,null,null,null,null,null,null,null,0]
["Susanne Nyholm","Leuring",29.9,null,null,null,null,null,null,null,null,null,null,null,null,null,null,null,null,null,null,0]
["Susse","Brandt",30.6,null,null,null,null,null,null,null,null,null,null,null,null,null,null,null,null,null,null,{"$f":"SUM(D25:U25)","v":0}]
["Alice","Ipsen",30.9,4,null,null,null,null,null,null,null,null,null,null,null,null,null,null,null,null,null,4]
[null,null,null,null,null,null,null,null,null,null,null,null,null,null,null,null,null,null,null,null,null,0]
[null,null,null,null,null,null,null,null,null,null,null,null,null,null,null,null,null,null,null,null,null,0]
[null,null,null,null,null,null,null,null,null,null,null,null,null,null,null,null,null,null,null,null,null,0]
[null,null,null,null,null,null,null,null,null,null,null,null,null,null,null,null,null,null,null,null,null,0]
[null,null,null,null,null,null,null,null,null,null,null,null,null,null,null,null,null,null,null,null,null,0]
[]
[]
[]
["DB   Damerække        B",null,null,null,null,null,null,null,null,null,null,null,null,null,null,null,null,null,null,null,null,"ÅR","10 bedste score"]
["hcp.    30,0 - 45,0",null,"hcp.","2021-04-16","2021-04-23","2021-05-07","2021-05-21","2021-06-04","2021-06-18","2021-06-25","2021-07-02","2021-07-09","2021-07-16","2021-07-23","2021-08-13","2021-08-20","2021-08-27","2021-09-03","2021-09-09","2021-09-24","2021-10-01",2021,2021]
["Helle","Jensen",31.1,8,null,null,null,null,null,null,null,null,null,null,null,null,null,null,null,null,null,{"$f":"SUM(D37:U37)","v":8}]
["Lilian Britta","Ekelund",31.5,3,null,null,null,null,null,null,null,null,null,null,null,null,null,null,null,null,null,3]
["Karin","Hahn",32,null,null,null,null,null,null,null,null,null,null,null,null,null,null,null,null,null,null,0]
["Inge Lise","Eisbo",32.6,6,null,null,null,null,null,null,null,null,null,null,null,null,null,null,null,null,null,6]
["Marianne Bækbo","Jacobsgaard",32.6,null,null,null,null,null,null,null,null,null,null,null,null,null,null,null,null,null,null,{"$f":"SUM(D41:U41)","v":0}]
["Rita","Jensen",32.700000000000003,null,null,null,null,null,null,null,null,null,null,null,null,null,null,null,null,null,null,0]
["Søs","Graae",32.799999999999997,null,null,null,null,null,null,null,null,null,null,null,null,null,null,null,null,null,null,0]
["Lone","Kay",33.200000000000003,null,null,null,null,null,null,null,null,null,null,null,null,null,null,null,null,null,null,0]
["Jonna","Stoltz",33.299999999999997,null,null,null,null,null,null,null,null,null,null,null,null,null,null,null,null,null,null,0]
["Bessie","Hejselbak",33.5,null,null,null,null,null,null,null,null,null,null,null,null,null,null,null,null,null,null,0]
["Karin","Christensen",33.5,null,null,null,null,null,null,null,null,null,null,null,null,null,null,null,null,null,null,0]
["Birgit","Palludan",33.6,7,null,null,null,null,null,null,null,null,null,null,null,null,null,null,null,null,null,7]
["Winnie","Jørgensen",33.700000000000003,null,null,null,null,null,null,null,null,null,null,null,null,null,null,null,null,null,null,0]
["Lone","Nielsen",33.9,null,null,null,null,null,null,null,null,null,null,null,null,null,null,null,null,null,null,0]
["Aase","Bremer",34,null,null,null,null,null,null,null,null,null,null,null,null,null,null,null,null,null,null,{"$f":"SUM(D51:U51)","v":0}]
["Lene","Knudsen",34,null,null,null,null,null,null,null,null,null,null,null,null,null,null,null,null,null,null,0]
["Anne Heyde","Lawaetz",34.299999999999997,5,null,null,null,null,null,null,null,null,null,null,null,null,null,null,null,null,null,5]
["Lene","Kristoffersen",34.5,null,null,null,null,null,null,null,null,null,null,null,null,null,null,null,null,null,null,0]
["Jette Højland","Eskildsen",34.6,null,null,null,null,null,null,null,null,null,null,null,null,null,null,null,null,null,null,0]
["Tove","Thomsen",34.700000000000003,null,null,null,null,null,null,null,null,null,null,null,null,null,null,null,null,null,null,0]
["Bente Lønborg","Høpfner",34.700000000000003,null,null,null,null,null,null,null,null,null,null,null,null,null,null,null,null,null,null,0]
["Pia","Engbirk",34.799999999999997,null,null,null,null,null,null,null,null,null,null,null,null,null,null,null,null,null,null,0]
["Jonna","Pedersen",34.799999999999997,null,null,null,null,null,null,null,null,null,null,null,null,null,null,null,null,null,null,0]
["Vibeke","Halborg",35.299999999999997,null,null,null,null,null,null,null,null,null,null,null,null,null,null,null,null,null,null,0]
["Inge","Clausen",36.200000000000003,4,null,null,null,null,null,null,null,null,null,null,null,null,null,null,null,null,null,4]
["Lene","Finne-Ipsen",37.200000000000003,null,null,null,null,null,null,null,null,null,null,null,null,null,null,null,null,null,null,0]
["Grethe Ulrich","Hansen",38.700000000000003,10,null,null,null,null,null,null,null,null,null,null,null,null,null,null,null,null,null,10]
["Lena","Brenting",38.799999999999997,null,null,null,null,null,null,null,null,null,null,null,null,null,null,null,null,null,null,0]
["Birthe","Jarlfeldt",38.799999999999997,null,null,null,null,null,null,null,null,null,null,null,null,null,null,null,null,null,null,0]
["Konny","Falck",39.700000000000003,null,null,null,null,null,null,null,null,null,null,null,null,null,null,null,null,null,null,0]
["Elsa","Ørhede",39.799999999999997,null,null,null,null,null,null,null,null,null,null,null,null,null,null,null,null,null,null,0]
["Karen","Nedergaard",41,null,null,null,null,null,null,null,null,null,null,null,null,null,null,null,null,null,null,0]
[null,null,null,null,null,null,null,null,null,null,null,null,null,null,null,null,null,null,null,null,null,0]
[null,null,null,null,null,null,null,null,null,null,null,null,null,null,null,null,null,null,null,null,null,0]
[null,null,null,null,null,null,null,null,null,null,null,null,null,null,null,null,null,null,null,null,null,0]
[null,null,null,null,null,null,null,null,null,null,null,null,null,null,null,null,null,null,null,null,null,0]
[null,null,null,null,null,null,null,null,null,null,null,null,null,null,null,null,null,null,null,null,null,0]

{"sheet":"9-huls Damerække","index":2,"n_rows":38,"n_cols":23,"rows_kept":38,"cut":false,"hidden":false,"merged":[]}
["9-Huls Damerække",null,null,null,null,null,null,null,null,null,null,null,null,null,null,null,null,null,null,null,null,"ÅR","10 bedste score"]
["Hcp +8 - 54,0",null,"hcp.","2021-04-16","2021-04-23","2021-05-07","2021-05-21","2021-06-04","2021-06-18","2021-06-25","2021-07-02","2021-07-09","2021-07-16","2021-07-23","2021-08-13","2021-08-20","2021-08-27","2021-09-03","2021-09-09","2021-09-24","2021-10-01",2021,2021]
["Birthe","Pløger",25,null,null,null,null,null,null,null,null,null,null,null,null,null,null,null,null,null,null,{"$f":"SUM(D3:U3)","v":0}]
["Lisbeth Berger","Frederiksen",27.8,3,null,null,null,null,null,null,null,null,null,null,null,null,null,null,null,null,null,{"$f":"SUM(D4:U4)","v":3}]
["Mette","Tornøe",31.1,null,null,null,null,null,null,null,null,null,null,null,null,null,null,null,null,null,null,{"$f":"SUM(D5:U5)","v":0}]
["Lone","Arngren",33.4,6,null,null,null,null,null,null,null,null,null,null,null,null,null,null,null,null,null,{"$f":"SUM(D6:U6)","v":6}]
["Karen","Bergenholtz",35.5,5,null,null,null,null,null,null,null,null,null,null,null,null,null,null,null,null,null,5]
["Gerda Marie","Tarp",36.9,10,null,null,null,null,null,null,null,null,null,null,null,null,null,null,null,null,null,10]
["Ann","Sorgenfrei",37,4,null,null,null,null,null,null,null,null,null,null,null,null,null,null,null,null,null,{"$f":"SUM(D9:U9)","v":4}]
["Anne Pia","Neye",37.1,null,null,null,null,null,null,null,null,null,null,null,null,null,null,null,null,null,null,0]
["Lene W.","Bobsin",37.299999999999997,8,null,null,null,null,null,null,null,null,null,null,null,null,null,null,null,null,null,8]
["Lisbeth","Løhndorf",37.799999999999997,null,null,null,null,null,null,null,null,null,null,null,null,null,null,null,null,null,null,{"$f":"SUM(D12:U12)","v":0}]
["Anne-Lise","Pfeiffer",38.200000000000003,null,null,null,null,null,null,null,null,null,null,null,null,null,null,null,null,null,null,{"$f":"SUM(D13:U13)","v":0}]
["Ellis","Poulsen",39,7,null,null,null,null,null,null,null,null,null,null,null,null,null,null,null,null,null,{"$f":"SUM(D14:U14)","v":7}]
["Lisbeth Tullis","Tamstorf",40,null,null,null,null,null,null,null,null,null,null,null,null,null,null,null,null,null,null,0]
["Lene","Jørgensen",40.299999999999997,null,null,null,null,null,null,null,null,null,null,null,null,null,null,null,null,null,null,0]
["Conni","Thomsen",40.4,null,null,null,null,null,null,null,null,null,null,null,null,null,null,null,null,null,null,{"$f":"SUM(D17:U17)","v":0}]
["Lilian","Kristensen",40.700000000000003,null,null,null,null,null,null,null,null,null,null,null,null,null,null,null,null,null,null,{"$f":"SUM(D18:U18)","v":0}]
["Anita","Hansen",43.1,null,null,null,null,null,null,null,null,null,null,null,null,null,null,null,null,null,null,0]
["Jytte","Johansen",44,null,null,null,null,null,null,null,null,null,null,null,null,null,null,null,null,null,null,0]
["Marianne","Andersen",44.9,null,null,null,null,null,null,null,null,null,null,null,null,null,null,null,null,null,null,{"$f":"SUM(D21:U21)","v":0}]
["Pernille","Rosenstand",46.4,null,null,null,null,null,null,null,null,null,null,null,null,null,null,null,null,null,null,0]
["Maibrith","Kallehave",51,null,null,null,null,null,null,null,null,null,null,null,null,null,null,null,null,null,null,0]
["Marianne Estrup","Risgaard",52.4,null,null,null,null,null,null,null,null,null,null,null,null,null,null,null,null,null,null,{"$f":"SUM(D24:U24)","v":0}]
["Birte","Dinesen",53,null,null,null,null,null,null,null,null,null,null,null,null,null,null,null,null,null,null,0]
["Jani","Hansen",54,null,null,null,null,null,null,null,null,null,null,null,null,null,null,null,null,null,null,{"$f":"SUM(D26:U26)","v":0}]
[null,null,null,null,null,null,null,null,null,null,null,null,null,null,null,null,null,null,null,null,null,0]
[null,null,null,null,null,null,null,null,null,null,null,null,null,null,null,null,null,null,null,null,null,0]
[null,null,null,null,null,null,null,null,null,null,null,null,null,null,null,null,null,null,null,null,null,0]
[null,null,null,null,null,null,null,null,null,null,null,null,null,null,null,null,null,null,null,null,null,0]
[null,null,null,null,null,null,null,null,null,null,null,null,null,null,null,null,null,null,null,null,null,0]
[null,null,null,null,null,null,null,null,null,null,null,null,null,null,null,null,null,null,null,null,null,0]
[null,null,null,null,null,null,null,null,null,null,null,null,null,null,null,null,null,null,null,null,null,0]
[null,null,null,null,null,null,null,null,null,null,null,null,null,null,null,null,null,null,null,null,null,0]
[null,null,null,null,null,null,null,null,null,null,null,null,null,null,null,null,null,null,null,null,null,0]
[null,null,null,null,null,null,null,null,null,null,null,null,null,null,null,null,null,null,null,null,null,0]
[null,null,null,null,null,null,null,null,null,null,null,null,null,null,null,null,null,null,null,null,null,0]
[null,null,null,null,null,null,null,null,null,null,null,null,null,null,null,null,null,null,null,null,null,0]

{"sheet":"9-huls Herrerække","index":3,"n_rows":32,"n_cols":23,"rows_kept":32,"cut":false,"hidden":false,"merged":[]}
["9-huls Herrerække",null,null,null,null,null,null,null,null,null,null,null,null,null,null,null,null,null,null,null,null,"ÅR","10 bedste score"]
["Hcp +8 - 54.0",null,"hcp.","2021-04-16","2021-04-23","2021-05-07","2021-05-21","2021-06-04","2021-06-18","2021-06-25","2021-07-02","2021-07-09","2021-07-16","2021-07-23","2021-08-13","2021-08-20","2021-08-27","2021-09-03","2021-09-09","2021-09-24","2021-10-01",2021,2021]
["Flemming","Frederiksen",21.9,10,null,null,null,null,null,null,null,null,null,null,null,null,null,null,null,null,null,{"$f":"SUM(D3:U3)","v":10}]
["Ib","Ohlsen",25.9,null,null,null,null,null,null,null,null,null,null,null,null,null,null,null,null,null,null,{"$f":"SUM(D4:U4)","v":0}]
["Jan","Neye",26.6,null,null,null,null,null,null,null,null,null,null,null,null,null,null,null,null,null,null,{"$f":"SUM(D5:U5)","v":0}]
["Søren","Andersen",27,null,null,null,null,null,null,null,null,null,null,null,null,null,null,null,null,null,null,{"$f":"SUM(D6:U6)","v":0}]
["Jens Erik","Thomsen",27.8,8,null,null,null,null,null,null,null,null,null,null,null,null,null,null,null,null,null,{"$f":"SUM(D7:U7)","v":8}]
["John","Jørgensen",28,6,null,null,null,null,null,null,null,null,null,null,null,null,null,null,null,null,null,{"$f":"SUM(D8:U8)","v":6}]
["Mogens","Jensen",29.7,null,null,null,null,null,null,null,null,null,null,null,null,null,null,null,null,null,null,0]
["Steen","Rasmussen",30,4,null,null,null,null,null,null,null,null,null,null,null,null,null,null,null,null,null,{"$f":"SUM(D10:U10)","v":4}]
["Jørgen","Hansen",30.5,null,null,null,null,null,null,null,null,null,null,null,null,null,null,null,null,null,null,0]
["Franck","Mikkelsen",31.5,null,null,null,null,null,null,null,null,null,null,null,null,null,null,null,null,null,null,{"$f":"SUM(D12:U12)","v":0}]
["Jens Christian","Andersen",32.200000000000003,null,null,null,null,null,null,null,null,null,null,null,null,null,null,null,null,null,null,{"$f":"SUM(D13:U13)","v":0}]
["Harry M.","Christensen",34.1,5,null,null,null,null,null,null,null,null,null,null,null,null,null,null,null,null,null,{"$f":"SUM(D14:U14)","v":5}]
["Alex","Johansen",35,null,null,null,null,null,null,null,null,null,null,null,null,null,null,null,null,null,null,0]
["Evan","Næve",35,null,null,null,null,null,null,null,null,null,null,null,null,null,null,null,null,null,null,{"$f":"SUM(D16:U16)","v":0}]
["Ole Stormly","Hansen",35.200000000000003,null,null,null,null,null,null,null,null,null,null,null,null,null,null,null,null,null,null,0]
["J. Steen Dirch","Poulsen",36.700000000000003,null,null,null,null,null,null,null,null,null,null,null,null,null,null,null,null,null,null,0]
["Bent","Sønderby",36.799999999999997,null,null,null,null,null,null,null,null,null,null,null,null,null,null,null,null,null,null,{"$f":"SUM(D19:U19)","v":0}]
["Frank","Kallehave",36.9,null,null,null,null,null,null,null,null,null,null,null,null,null,null,null,null,null,null,0]
["Ole","Winther",37.200000000000003,null,null,null,null,null,null,null,null,null,null,null,null,null,null,null,null,null,null,0]
["Michael","Tødten",38.1,null,null,null,null,null,null,null,null,null,null,null,null,null,null,null,null,null,null,0]
["Poul Erik","Tarp",38.799999999999997,7,null,null,null,null,null,null,null,null,null,null,null,null,null,null,null,null,null,7]
["Helge","Jensen",39.9,3,null,null,null,null,null,null,null,null,null,null,null,null,null,null,null,null,null,3]
["Leif","Hansen",40.200000000000003,null,null,null,null,null,null,null,null,null,null,null,null,null,null,null,null,null,null,{"$f":"SUM(D25:U25)","v":0}]
["Jørgen","Albæk",48,null,null,null,null,null,null,null,null,null,null,null,null,null,null,null,null,null,null,0]
[null,null,null,null,null,null,null,null,null,null,null,null,null,null,null,null,null,null,null,null,null,0]
[null,null,null,null,null,null,null,null,null,null,null,null,null,null,null,null,null,null,null,null,null,{"$f":"SUM(D28:U28)","v":0}]
[null,null,null,null,null,null,null,null,null,null,null,null,null,null,null,null,null,null,null,null,null,0]
[null,null,null,null,null,null,null,null,null,null,null,null,null,null,null,null,null,null,null,null,null,0]
[null,null,null,null,null,null,null,null,null,null,null,null,null,null,null,null,null,null,null,null,null,0]
[null,null,null,null,null,null,null,null,null,null,null,null,null,null,null,null,null,null,null,null,null,0]

{"sheet":"Ark1","index":4,"n_rows":0,"n_cols":0,"rows_kept":0,"cut":false,"hidden":false,"merged":[]}

{"sheet":"Ark2","index":5,"n_rows":0,"n_cols":0,"rows_kept":0,"cut":false,"hidden":false,"merged":[]}